bitfinex/quotes_ETHUSD_20220119
["timestamp","ask_amount","ask_price","bid_price","bid_amount"]
[1642608828246,0.08812094,3098.9,3098.1,0.80860527]
[1642608828497,0.08812094,3098.9,3098.1,0.00170527]
[1642608828695,0.00227369,3098.8,3098.2,0.00113685]
[1642608828897,0.00227369,3098.8,3098.0,0.00227369]
[1642608829097,0.08472959,3098.7,3097.4,0.00568424]
[1642608829298,0.00170527,3098.7,3097.3,0.00625266]
[1642608829495,0.01293566,3099.0,3098.0,1.85941582]
[1642608829496,1.17656364,3098.6,3098.0,1.85941582]
[1642608829698,0.00113685,3098.6,3098.0,1.85941582]
[1642608829896,0.00113685,3098.6,3098.1,0.00170527]
[1642608830096,0.00113685,3098.6,3097.7,0.387]
[1642608830299,0.00113685,3098.6,3097.1,6.68436298]
[1642608830300,0.01256439,3097.8,3095.6,1.13422775]
[1642608830498,0.01201485,3097.1,3095.7,3.6739]
[1642608830704,1.0905,3097.5,3095.6,1.86475]
[1642608830906,1.0905,3097.5,3095.9,1.61475]
[1642608831098,1.0905,3097.5,3096.8,1.89466166]
[1642608831300,5.18168127,3096.9,3096.0,0.01193689]
[1642608831500,0.04327396,3096.8,3095.5,0.13819997]
[1642608831698,0.9615,3096.7,3095.5,0.13819997]
[1642608831906,4.25111671,3096.9,3095.5,0.13819997]
[1642608831907,0.9615,3096.5,3095.5,0.13819997]
[1642608832173,0.09574812,3096.1,3094.9,0.1291]
[1642608832364,0.09574812,3096.1,3094.8,0.25]
[1642608832365,0.9615,3095.3,3094.8,0.25]
[1642608832565,0.9615,3095.3,3095.0,0.01762113]
[1642608834069,0.9615,3095.3,3095.1,0.1292]
[1642608834264,0.9615,3095.3,3095.0,0.01762113]
[1642608834265,0.9615,3095.3,3095.2,1.74013263]
[1642608834569,0.16587227,3096.6,3095.2,5.45661691]
[1642608834764,2.29633375,3096.9,3095.3,3.9]
[1642608834966,0.0353166,3097.0,3095.3,3.91591586]
[1642608835168,2.8025277,3097.5,3096.2,1.18752772]
[1642608835369,1.0,3097.6,3097.1,1.83037441]
[1642608835564,1.0,3097.6,3096.2,1.18752772]
[1642608835565,1.0,3097.6,3096.3,0.01023162]
[1642608835765,1.0,3097.6,3096.2,1.18752772]
[1642608835766,1.0,3097.6,3097.2,0.00511581]
[1642608835990,1.0,3097.6,3096.3,0.01023162]
[1642608836195,0.01256142,3096.4,3095.6,1.61464]
[1642608836396,0.01256142,3096.4,3095.4,0.129]
[1642608836397,0.10653554,3096.3,3095.4,0.129]
[1642608836593,0.09451047,3096.3,3095.7,1.8769783]
[1642608836793,0.0552682,3096.4,3095.7,1.8769783]
[1642608836992,1.0,3096.6,3095.8,0.00284212]
[1642608837197,0.80772,3096.4,3095.8,0.00284212]
[1642608837796,0.08976504,3096.3,3095.8,0.00284212]
[1642608837994,1.40570384,3096.5,3095.5,0.00454739]
[1642608838196,0.01201268,3096.2,3095.5,0.00454739]
[1642608838394,1.0,3096.0,3095.5,0.00454739]
[1642608838601,0.80801,3095.4,3094.7,1.7242568]
[1642608838800,0.13819997,3095.9,3094.7,1.7242568]
[1642608838998,0.13819997,3095.9,3094.8,0.00852636]
[1642608839394,0.13819997,3095.9,3094.8,0.81618636]
[1642608839659,0.00113684,3096.5,3094.9,3.71229199]
[1642608839860,0.00113684,3096.5,3095.3,0.80747]
[1642608840059,0.00113684,3096.5,3095.4,5.54276069]
[1642608840256,0.00113684,3096.5,3095.4,5.5478765]
[1642608840461,2.8074,3097.6,3096.7,1.36847205]
[1642608840462,1.0,3097.6,3096.7,1.36847205]
[1642608840660,1.0,3097.6,3096.6,0.13819997]
[1642608840862,1.0,3097.6,3096.6,0.52519997]
[1642608840863,0.00454739,3097.3,3096.6,0.52519997]
[1642608841356,0.00397897,3097.2,3096.6,0.52519997]
[1642608841762,2.08830878,3097.6,3096.6,0.129]
[1642608841763,2.04171932,3097.6,3096.6,0.129]
[1642608841961,2.04171932,3097.6,3095.8,1.6145822]
[1642608841962,0.07144159,3097.5,3096.7,0.00227369]
[1642608842161,0.0022737,3097.5,3096.7,0.00227369]
[1642608842365,0.01256347,3096.9,3096.0,0.00625265]
[1642608842563,0.01256347,3096.9,3095.6,0.129]
[1642608842564,5.95,3096.8,3095.6,0.129]
[1642608842763,5.95,3096.8,3094.5,1.26322775]
[1642608842764,0.0125433,3095.7,3094.5,1.26322775]
[1642608842964,0.0125433,3095.7,3093.1,1.78367847]
[1642608842965,0.08860092,3095.6,3093.8,2.46602694]
[1642608843163,1.85292842,3095.6,3094.9,1.92337989]
[1642608843421,3.18263055,3096.1,3094.9,1.92337989]
[1642608843422,0.10519997,3096.1,3094.9,1.92337989]
[1642608843626,0.10519997,3096.1,3094.6,1.61531]
[1642608843627,0.01211682,3095.2,3094.6,1.61531]
[1642608843828,0.01211682,3095.2,3093.9,0.48607156]
[1642608843829,0.06273622,3094.9,3093.9,0.48607156]
[1642608844022,2.88263055,3096.1,3094.7,0.00738951]
[1642608844223,2.88263055,3096.1,3094.0,0.56119213]
[1642608844423,0.10519997,3096.1,3094.0,0.69039213]
[1642608844625,0.10519997,3096.1,3096.0,2.03164256]
[1642608844825,0.10519997,3096.1,3094.6,1.6153142]
[1642608845036,0.10519997,3096.1,3094.8,0.02218913]
[1642608845226,0.10519997,3096.1,3094.9,0.1292]
[1642608845424,0.10519997,3096.1,3094.9,0.13545266]
[1642608845626,0.10519997,3096.1,3095.0,0.00568424]
[1642608845826,0.10519997,3096.1,3095.3,1.30406974]
[1642608846031,0.01255401,3096.6,3095.3,1.25406974]
[1642608846327,0.01255401,3096.6,3095.4,0.39041054]
[1642608846328,0.00284211,3096.5,3095.4,0.39041054]
[1642608846724,0.00227369,3096.4,3095.5,0.55247311]
[1642608846927,0.00227369,3096.4,3095.9,0.80741]
[1642608847172,0.00170527,3096.3,3096.0,0.8073796]
[1642608847366,1.76018,3097.8,3096.1,5.95]
[1642608847367,3.7355631,3097.8,3096.1,5.95]
[1642608847571,3.6496,3098.2,3096.2,0.53317352]
[1642608847572,2.7827631,3098.1,3096.2,0.53317352]
[1642608847767,2.7827631,3098.1,3096.2,0.516]
[1642608847768,0.0073895,3097.6,3096.2,0.516]
[1642608848168,1.29536013,3097.5,3097.1,1.66077761]
[1642608848564,0.00625265,3097.4,3096.4,1.614284]
[1642608848966,0.00568423,3097.3,3096.4,1.614284]
[1642608849364,0.00511581,3097.2,3096.4,1.614284]
[1642608849564,0.00511581,3097.2,3096.5,1.61438]
[1642608849765,0.00454738,3097.1,3096.5,1.61438]
[1642608850071,0.01238496,3097.5,3096.3,0.129]
[1642608850072,0.11081524,3097.0,3096.3,0.129]
[1642608850270,0.11081524,3097.0,3096.1,0.00113685]
[1642608850271,0.01208168,3096.8,3096.1,0.00113685]
[1642608850670,5.96253445,3096.2,3096.1,0.00113685]
[1642608850902,5.96253445,3096.2,3096.1,2.24136376]
[1642608851099,0.01711151,3097.1,3096.1,2.24136376]
[1642608851298,0.01258604,3096.2,3096.1,2.24250061]
[1642608851500,0.00397896,3097.0,3096.1,2.24250061]
[1642608851899,0.00341054,3096.9,3096.1,2.24250061]
[1642608852102,0.00341054,3096.9,3096.2,1.53448294]
[1642608852300,1.22667985,3097.6,3096.2,1.92148294]
[1642608852301,0.00284211,3096.8,3096.2,1.92148294]
[1642608852606,0.00227369,3096.7,3096.2,1.92148294]
[1642608852798,0.00227369,3096.7,3096.3,1.6145241]
[1642608852997,0.00170527,3096.6,3096.3,1.6145241]
[1642608853397,0.00113684,3096.5,3096.3,1.6145241]
[1642608853603,0.00113684,3096.5,3096.4,4.679]
[1642608853804,2.89960408,3097.9,3096.7,0.8072191]
[1642608853805,0.00852635,3097.8,3096.7,0.8072191]
[1642608854004,1.1256744,3097.8,3097.6,2.01842297]
[1642608854674,0.01284077,3097.9,3097.6,2.01842297]
[1642608854869,0.13819997,3098.1,3097.6,2.01842297]
[1642608855065,0.00852635,3097.8,3097.6,2.91242297]
[1642608855468,0.00795793,3097.7,3097.6,2.91242297]
[1642608855671,0.00795793,3097.7,3097.6,3.29942297]
[1642608855866,0.00795793,3097.7,3097.6,8.09942297]
[1642608856067,4.39336599,3099.3,3097.7,5.95]
[1642608856266,2.74696487,3099.2,3098.2,0.80681]
[1642608856466,0.00682108,3098.9,3098.2,0.80681]
[1642608856866,0.00625265,3098.8,3098.2,0.80681]
[1642608857266,0.0086327,3098.9,3097.8,0.129]
[1642608857267,0.00568423,3098.7,3097.8,0.129]
[1642608857775,1.24267147,3098.9,3097.8,0.129]
[1642608857967,1.24267147,3098.9,3097.9,0.00397897]
[1642608858166,0.00113684,3098.8,3097.9,0.00397897]
[1642608858392,0.00113684,3098.8,3098.1,2.30692428]
[1642608858798,0.00113684,3098.8,3098.2,0.0022737]
[1642608859001,0.00113684,3098.8,3098.2,3.21695856]
[1642608859198,0.00113684,3098.8,3098.2,0.0022737]
[1642608859399,0.00113684,3098.8,3098.3,0.00170527]
[1642608859599,0.00113684,3098.8,3098.2,1.6159136]
[1642608859798,0.00113684,3098.8,3098.3,0.80856457]
[1642608860199,0.00113684,3098.8,3098.4,0.00113685]
[1642608860603,0.00113684,3098.8,3098.7,1.82213173]
[1642608860803,0.00113684,3098.8,3098.4,0.00113685]
[1642608860804,0.04325044,3098.7,3098.4,0.00113685]
[1642608861007,0.04325044,3098.7,3096.3,1.13422775]
[1642608861008,0.00312735,3098.2,3096.3,1.13422775]
[1642608861206,0.01217507,3096.7,3096.3,1.13422775]
[1642608861403,0.01217507,3096.7,3095.9,1.0]
[1642608861404,0.19022341,3096.6,3095.9,1.0]
[1642608861801,1.80324982,3096.3,3096.0,0.01364216]
[1642608862013,0.129,3096.4,3096.0,0.01364216]
[1642608862264,0.129,3096.5,3096.0,0.01364216]
[1642608862466,3.01632167,3096.9,3095.6,0.01591586]
[1642608862467,0.129,3096.8,3095.6,0.01591586]
[1642608862766,1.52994167,3096.9,3095.2,0.14728955]
[1642608862974,1.40094167,3096.9,3095.2,0.14728955]
[1642608863168,1.40094167,3096.9,3095.9,1.77559293]
[1642608863370,0.129,3096.8,3095.9,1.77559293]
[1642608863969,0.129,3097.2,3095.9,1.77559293]
[1642608864369,0.93651,3097.2,3096.5,1.8949408]
[1642608864570,0.93651,3097.2,3095.6,0.129]
[1642608864571,3.86129281,3097.2,3095.6,0.129]
[1642608864877,5.95,3096.6,3095.2,0.91627442]
[1642608865074,2.9119631,3096.5,3095.7,0.00511581]
[1642608865269,6.9028,3095.8,3095.7,0.00511581]
[1642608865475,10.05626725,3095.8,3095.7,0.00511581]
[1642608865671,10.05626725,3095.8,3095.2,0.91627442]
[1642608865672,7.69961682,3095.3,3095.2,0.91627442]
[1642608865927,7.69961682,3095.3,3095.1,0.0242]
[1642608865928,5.63767565,3095.2,3095.1,0.0242]
[1642608866122,2.55,3095.1,3094.0,0.807986]
[1642608866721,2.55,3095.1,3093.6,2.66144562]
[1642608866921,2.55,3095.1,3093.6,2.53224562]
[1642608867121,0.31270871,3095.8,3093.9,0.8080103]
[1642608867323,0.9528,3096.1,3094.1,1.6157743]
[1642608867528,3.0827631,3096.1,3094.1,2.4236643]
[1642608867724,0.00170527,3096.0,3094.2,0.13772636]
[1642608867923,0.00170527,3096.0,3094.2,1.75312636]
[1642608868132,1.24178335,3095.6,3094.3,0.00795793]
[1642608868327,1.24178335,3095.6,3094.4,0.8078872]
[1642608868525,0.80786,3095.9,3095.4,2.08324999]
[1642608868726,0.1292,3095.8,3095.4,2.08324999]
[1642608868923,0.1292,3095.8,3095.5,0.00113685]
[1642608869123,0.00170527,3096.0,3095.5,0.00113685]
[1642608869324,0.00170527,3096.0,3094.4,0.1292]
[1642608869325,5.95,3095.9,3094.4,0.1292]
[1642608869529,0.11532731,3095.7,3094.4,0.1292]
[1642608869765,0.9528,3095.2,3094.5,0.00568424]
[1642608869968,1.82978333,3095.1,3094.5,0.00568424]
[1642608870164,1.6858028,3095.0,3094.5,0.00568424]
[1642608870362,0.1292,3094.9,3094.5,0.00568424]
[1642608870563,5.33068075,3094.6,3094.5,0.00568424]
[1642608870966,3.54068075,3094.6,3094.5,0.00568424]
[1642608871770,3.54068075,3094.6,3093.2,3.9688]
[1642608871771,5.95,3094.5,3093.2,0.04]
[1642608871968,1.40374007,3093.8,3093.2,0.04]
[1642608872165,0.04511431,3093.7,3093.3,0.00682108]
[1642608872364,1.40374007,3093.8,3093.3,0.00682108]
[1642608872966,0.1293,3094.1,3093.3,0.00682108]
[1642608873168,0.80836,3094.2,3093.3,0.00682108]
[1642608873410,0.93756,3094.2,3093.3,0.00682108]
[1642608874011,0.1292,3094.2,3094.1,2.07622886]
[1642608874312,0.9528,3095.0,3094.1,0.00227369]
[1642608874313,0.1292,3095.0,3094.1,0.00227369]
[1642608874510,0.9528,3095.5,3094.1,0.00227369]
[1642608874511,0.1292,3095.2,3094.1,0.00227369]
[1642608874711,0.0022737,3094.9,3094.1,0.00227369]
[1642608874913,0.1292,3095.3,3094.2,0.8080033]
[1642608874914,0.00341055,3095.1,3094.2,0.8080033]
[1642608875112,0.00170527,3094.8,3094.2,0.8080033]
[1642608875312,0.00284212,3095.0,3094.3,1.97065557]
[1642608875514,0.00113685,3094.7,3094.3,1.97065557]
[1642608876020,0.00511582,3095.4,3094.3,3.58637567]
[1642608876214,0.00511582,3095.4,3094.4,1.6157417]
[1642608876414,0.00454739,3095.3,3094.4,1.6157417]
[1642608876614,0.00454739,3095.3,3095.2,2.03699231]
[1642608876815,0.13819997,3095.8,3094.4,1.6157417]
[1642608876816,0.00397897,3095.2,3094.4,1.6157417]
[1642608877017,0.00454739,3095.3,3094.3,0.00113684]
[1642608877277,0.00341055,3095.1,3094.3,0.00113684]
[1642608877468,0.1292,3095.7,3094.2,0.00170527]
[1642608877469,0.00397897,3095.2,3094.2,0.00170527]
[1642608877665,0.00284212,3095.0,3094.6,2.13728775]
[1642608877867,1.5187167,3095.3,3094.6,2.13728775]
[1642608877868,0.00341055,3095.1,3094.6,2.13728775]
[1642608878068,0.0022737,3094.9,3094.6,2.13728775]
[1642608878267,0.00284212,3095.0,3094.6,2.13728775]
[1642608878472,0.1292,3095.7,3094.6,2.13728775]
[1642608878473,0.00170527,3094.8,3094.6,2.13728775]
[1642608878677,0.0022737,3094.9,3094.6,2.13728775]
[1642608878873,0.00113685,3094.7,3094.6,2.13728775]
[1642608879073,0.00170527,3094.8,3094.6,2.13728775]
[1642608879273,0.00113685,3094.7,3094.6,2.13728775]
[1642608879672,0.00113685,3094.7,3094.6,7.05293565]
[1642608880172,0.00113685,3094.7,3094.6,3.75293565]
[1642608880571,0.00113685,3094.7,3094.6,6.35293565]
[1642608881001,0.00113685,3094.7,3094.6,3.75293565]
[1642608881407,0.00113685,3094.7,3094.6,2.94513565]
[1642608882608,0.00113685,3094.7,3094.6,6.49513565]
[1642608883513,3.1791442,3096.3,3094.6,6.49513565]
[1642608883514,0.23439997,3096.5,3094.9,2.4230045]
[1642608883717,0.10519997,3096.5,3095.2,0.80759]
[1642608883912,0.00511581,3095.6,3095.3,0.387]
[1642608884108,0.00511581,3095.6,3095.4,2.19104082]
[1642608884309,0.00454739,3095.5,3095.4,3.71948986]
[1642608884509,0.1292,3096.8,3095.9,0.8074582]
[1642608884960,0.00454739,3096.3,3095.9,0.8074582]
[1642608885358,0.00397896,3096.2,3095.9,0.8074582]
[1642608885558,0.00397896,3096.2,3096.0,2.05467782]
[1642608885758,0.00341054,3096.1,3096.0,2.05467782]
[1642608885962,0.00341054,3096.1,3095.8,2.4223664]
[1642608885963,0.00341054,3096.1,3095.8,0.129]
[1642608886362,1.20637737,3096.6,3095.8,0.129]
[1642608886363,0.00284212,3096.0,3095.8,0.129]
[1642608886762,4.20227369,3095.9,3095.8,0.129]
[1642608886963,4.20227369,3095.9,3094.8,0.033]
[1642608886964,0.07802248,3095.8,3095.2,1.78613044]
[1642608887159,4.20227369,3095.9,3095.2,1.78613044]
[1642608887365,0.00113685,3095.7,3095.3,0.00113685]
[1642608887561,0.00170527,3095.8,3095.3,0.00113685]
[1642608887962,0.00113685,3095.7,3095.3,0.00113685]
[1642608888162,0.00113685,3095.7,3095.0,0.00284212]
[1642608888412,0.00113685,3095.7,3094.9,1.6154607]
[1642608888413,0.13261054,3096.1,3094.9,1.61887124]
[1642608888611,0.00341054,3096.1,3095.1,0.807748]
[1642608888809,1.21058255,3095.9,3095.1,0.807748]
[1642608889015,1.21058255,3095.9,3095.2,0.00170527]
[1642608889210,0.00170527,3095.8,3095.3,2.28134835]
[1642608889712,1.21058255,3095.9,3095.3,2.28134835]
[1642608889713,0.00113685,3095.7,3095.3,2.28134835]
[1642608890113,1.94598997,3096.8,3095.3,2.28134835]
[1642608890114,0.10519997,3096.7,3095.3,2.28134835]
[1642608890313,0.10519997,3096.7,3095.4,0.00170527]
[1642608890514,0.10519997,3096.7,3095.5,0.387]
[1642608890916,0.10519997,3096.7,3095.4,0.00170527]
[1642608890917,0.80772,3096.5,3095.4,0.00170527]
[1642608891114,0.26635997,3096.7,3095.4,0.00170527]
[1642608891115,1.47266995,3095.9,3095.4,0.00170527]
[1642608891313,1.47266995,3095.9,3095.0,0.00397897]
[1642608891717,2.81394046,3095.8,3095.0,0.00397897]
[1642608891914,0.80808,3095.6,3095.0,0.00397897]
[1642608892155,0.08410854,3095.5,3095.0,0.00397897]
[1642608892454,0.08410854,3095.5,3094.0,0.0096632]
[1642608892455,3.39288096,3095.4,3094.0,0.0096632]
[1642608892658,1.61651,3095.1,3094.0,0.0096632]
[1642608892858,1.61651,3095.1,3093.2,0.007]
[1642608892859,18.63225938,3094.9,3093.6,0.0119369]
[1642608893059,0.80848,3094.6,3093.6,0.0119369]
[1642608893258,0.07298869,3094.3,3093.3,0.01364217]
[1642608893462,0.04278485,3094.3,3093.3,0.01364217]
[1642608893661,1.48943003,3093.9,3093.3,0.01364217]
[1642608893863,1.48943003,3093.9,3093.3,1.8916134]
[1642608894262,0.80836,3094.1,3093.4,0.01307374]
[1642608894660,5.25,3094.0,3093.3,1.72832823]
[1642608894860,0.0632307,3093.8,3093.2,0.007]
[1642608895263,0.81020527,3093.7,3093.2,0.007]
[1642608895466,1.22454906,3093.4,3093.2,0.007]
[1642608895933,0.00113684,3093.6,3093.2,0.007]
[1642608896120,0.00113684,3093.6,3093.2,1.76942127]
[1642608896321,0.00113684,3093.6,3093.2,0.007]
[1642608897422,0.00113684,3093.6,3093.3,1.99272602]
[1642608899654,0.00113684,3093.6,3093.3,2.80093032]
[1642608900255,0.00113684,3093.6,3093.4,0.56246558]
[1642608900457,2.92370856,3095.5,3093.5,5.95]
[1642608900653,0.01276831,3096.0,3094.1,0.8078388]
[1642608900854,0.00682108,3094.8,3094.1,0.8078388]
[1642608901253,0.00625266,3094.7,3094.1,0.8078388]
[1642608901461,1.23686382,3094.5,3094.0,0.387]
[1642608901656,1.23686382,3094.5,3093.8,0.1292]
[1642608901657,1.23686382,3094.5,3093.9,0.8081095]
[1642608901853,1.23686382,3094.5,3093.8,0.1292]
[1642608901854,0.00454739,3094.4,3093.8,0.1292]
[1642608902060,0.80834,3094.3,3093.8,0.1292]
[1642608902259,2.9948885,3094.2,3093.8,0.1292]
[1642608902455,4.72357166,3094.1,3093.8,0.1292]
[1642608902654,0.00284212,3094.1,3093.8,0.1292]
[1642608902855,0.80834,3094.3,3093.8,0.1292]
[1642608902856,3.98910634,3093.9,3093.8,0.1292]
[1642608903154,1.34081161,3093.9,3093.8,0.1292]
[1642608903410,0.00170527,3093.9,3093.8,0.1292]
[1642608903615,0.00170527,3093.9,3093.3,1.73357606]
[1642608904014,0.00113685,3093.8,3093.4,0.00113684]
[1642608904215,0.00113685,3093.8,3093.5,1.6162877]
[1642608904416,3.20141326,3095.0,3093.6,1.45869171]
[1642608904417,0.00568424,3094.6,3093.6,1.45869171]
[1642608904621,0.00568424,3094.6,3094.3,1.84587288]
[1642608904815,1.24110533,3094.9,3094.3,1.84587288]
[1642608904816,0.00511581,3094.5,3094.3,1.84587288]
[1642608905017,0.00511581,3094.5,3093.5,1.6162877]
[1642608905221,1.24110533,3094.9,3093.5,1.6162877]
[1642608905222,0.00454739,3094.4,3093.5,1.6162877]
[1642608905416,0.00454739,3094.4,3093.4,0.00113684]
[1642608905618,0.01208855,3094.7,3093.4,0.00113684]
[1642608905619,1.3548011,3094.0,3093.4,0.00113684]
[1642608905818,1.3548011,3094.0,3093.3,0.00170527]
[1642608906017,0.00170527,3093.9,3093.3,0.00170527]
[1642608906416,0.00113685,3093.8,3093.3,2.1155644]
[1642608906616,0.00113685,3093.8,3093.3,0.00170527]
[1642608908880,0.00113685,3093.8,3093.4,0.00591809]
[1642608909076,0.00113685,3093.8,3093.6,0.03726139]
[1642608909275,0.00113685,3093.8,3093.6,2.63354097]
[1642608909974,0.9528,3094.2,3093.8,5.95]
[1642608910177,0.9528,3094.2,3093.9,0.80792]
[1642608910377,4.12572915,3095.8,3094.0,0.00882213]
[1642608910578,4.12572915,3095.8,3094.0,0.5162]
[1642608910579,2.75003631,3095.7,3094.0,0.5162]
[1642608910910,0.00454739,3094.9,3094.0,0.387]
[1642608911310,0.00397896,3094.8,3094.3,1.6158048]
[1642608911510,0.00397896,3094.8,3094.4,2.67260713]
[1642608911709,0.00341054,3094.7,3094.4,2.67260713]
[1642608911917,0.00341054,3094.7,3094.4,1.86471083]
[1642608912116,0.00284212,3094.6,3094.4,1.86471083]
[1642608912516,0.00227369,3094.5,3094.4,1.86471083]
[1642608913320,0.00227369,3094.5,3094.4,8.20171083]
[1642608913519,0.00227369,3094.5,3094.4,8.33091083]
[1642608913717,0.00227369,3094.5,3094.4,9.68850078]
[1642608913918,0.00227369,3094.5,3094.4,8.88085078]
[1642608914315,2.40181002,3095.9,3094.8,0.8076544]
[1642608914517,2.40181002,3095.9,3095.6,2.06160693]
[1642608914767,0.00738951,3095.8,3094.9,0.387]
[1642608914964,0.00738951,3095.8,3095.0,1.6153788]
[1642608915159,0.11806371,3096.3,3095.0,3.9153788]
[1642608915360,2.7495519,3096.2,3095.1,0.03818714]
[1642608915566,0.00113685,3096.0,3095.3,0.8076282]
[1642608915761,0.00113685,3096.0,3095.3,1.1946282]
[1642608915959,2.74944985,3096.5,3095.3,1.1946282]
[1642608915960,2.74944985,3096.4,3095.5,1.6151654]
[1642608916161,2.74944985,3096.3,3095.5,3.4851354]
[1642608916362,0.00284212,3096.3,3095.6,1.55187355]
[1642608916659,0.00227369,3096.2,3095.7,1.0617976]
[1642608916859,0.00227369,3096.2,3095.7,1.4487976]
[1642608917060,2.74936696,3096.8,3095.7,1.4487976]
[1642608917061,0.00170527,3096.1,3095.7,1.4487976]
[1642608917466,0.00511581,3096.7,3095.8,1.73559455]
[1642608917662,0.00511581,3096.7,3096.0,0.8073693]
[1642608917862,0.00454739,3096.6,3096.1,0.387]
[1642608918260,0.01278304,3097.1,3096.1,0.387]
[1642608918261,0.00397896,3096.5,3096.1,0.387]
[1642608918525,0.00397896,3096.5,3096.2,0.81573972]
[1642608918728,0.00341054,3096.4,3096.3,0.387]
[1642608919123,0.00909477,3096.4,3096.3,0.387]
[1642608919522,0.63775659,3096.4,3096.3,0.387]
[1642608919724,1.26641841,3096.4,3096.3,0.387]
[1642608920129,1.26641841,3096.4,3096.3,3.387]
[1642608921127,0.0242,3097.5,3097.4,2.24384968]
[1642608921331,0.0242,3097.5,3097.4,3.13564968]
[1642608921727,0.0242,3097.5,3097.4,3.52264968]
[1642608922171,0.00312735,3098.2,3097.5,3.55]
[1642608922370,0.00312735,3098.2,3097.6,0.387]
[1642608922570,0.00397897,3098.1,3097.6,0.387]
[1642608922971,0.00312735,3098.2,3097.6,0.387]
[1642608922972,0.00341055,3098.0,3097.6,0.387]
[1642608923169,1.46575973,3098.6,3097.6,0.387]
[1642608923170,1.42229763,3098.6,3097.6,0.387]
[1642608923370,1.42229763,3098.6,3097.7,0.80868527]
[1642608923569,4.39336599,3099.3,3097.8,0.387]
[1642608923570,0.00284211,3098.5,3097.8,0.387]
[1642608923773,0.00284211,3098.5,3097.8,0.38813685]
[1642608923975,4.39336599,3099.3,3097.8,0.38813685]
[1642608923976,0.00227369,3098.4,3097.8,0.38813685]
[1642608924370,0.00170527,3098.3,3097.8,0.38813685]
[1642608924571,0.00170527,3098.3,3097.9,0.8069613]
[1642608924777,0.01298534,3099.4,3098.0,1.57401315]
[1642608924778,0.00113684,3098.2,3098.0,1.57401315]
[1642608925074,0.0073895,3099.3,3098.0,2.38083315]
[1642608925282,0.81972253,3099.9,3098.1,5.95]
[1642608925475,0.81972253,3099.9,3098.2,0.387]
[1642608925476,2.74718775,3099.8,3098.2,0.387]
[1642608925671,2.75002987,3099.8,3098.3,0.8067978]
[1642608925911,2.75002987,3099.8,3098.4,3.98883008]
[1642608926112,0.00284212,3099.8,3098.8,2.22095874]
[1642608926312,0.00284212,3099.8,3098.9,0.387]
[1642608926616,0.00284212,3099.8,3099.1,0.01245395]
[1642608926816,2.74660873,3100.9,3099.2,6.337]
[1642608927013,2.74660873,3100.8,3099.2,0.39041054]
[1642608927213,0.01254672,3101.1,3099.2,0.39041054]
[1642608927214,2.07621257,3099.6,3099.3,0.00284212]
[1642608927416,2.07621257,3099.6,3099.4,0.387]
[1642608927614,2.07621257,3099.6,3098.6,0.387]
[1642608927615,1.02430758,3099.2,3098.6,0.387]
[1642608927821,1.02430758,3099.2,3098.2,0.387]
[1642608927822,0.04575822,3099.1,3098.2,0.387]
[1642608928017,0.04575822,3099.1,3098.0,0.129]
[1642608928018,1.32430758,3099.2,3098.7,0.00341054]
[1642608928215,3.42026652,3099.1,3098.7,0.00341054]
[1642608928516,3.42026652,3099.1,3098.0,0.129]
[1642608928517,1.3407883,3098.3,3098.1,0.00341054]
[1642608928721,0.00371585,3098.6,3098.1,0.00341054]
[1642608929117,0.00371585,3098.6,3097.8,0.39211581]
[1642608929316,0.00371585,3098.6,3097.9,0.00454739]
[1642608929516,2.18283102,3098.2,3097.9,0.00454739]
[1642608929969,0.07933393,3098.1,3097.9,0.00454739]
[1642608930163,2.18283102,3098.2,3097.2,0.00852635]
[1642608930368,2.18283102,3098.2,3097.5,0.00682108]
[1642608930565,2.18283102,3098.2,3097.1,0.033]
[1642608930566,1.75017477,3097.6,3097.2,0.00852635]
[1642608930764,0.81090585,3098.6,3097.2,0.00852635]
[1642608930965,0.00371585,3098.6,3097.5,0.8071118]
[1642608931364,0.00371585,3098.6,3097.6,0.13525266]
[1642608931667,0.00371585,3098.6,3097.7,2.35245533]
[1642608931868,0.00371585,3098.6,3098.5,4.95220389]
[1642608932066,0.00371585,3098.6,3098.5,2.68920389]
[1642608932262,0.00371585,3098.6,3098.5,2.69034074]
[1642608932462,0.00371585,3098.6,3098.5,0.38813685]
[1642608933164,2.55371585,3098.6,3098.5,0.38813685]
[1642608933407,4.66810374,3098.6,3098.5,0.38813685]
[1642608933610,0.00371585,3098.6,3098.5,0.38813685]
[1642608937176,0.00371585,3098.6,3098.5,7.48776245]
[1642608939380,0.00371585,3098.6,3098.5,6.33813685]
[1642608940182,0.00371585,3098.6,3098.5,0.38813685]
[1642608940587,0.00371585,3098.6,3098.5,0.00113685]
[1642608941814,0.00371585,3098.6,3098.4,0.00170527]
[1642608942916,0.00371585,3098.6,3098.4,1.61532967]
[1642608943117,0.00371585,3098.6,3098.4,0.00170527]
[1642608943313,0.00318606,3098.3,3097.6,0.387]
[1642608943518,5.50856036,3098.2,3098.1,0.00227369]
[1642608943715,0.00318606,3098.3,3098.1,0.00227369]
[1642608944115,0.00318606,3098.3,3097.4,1.62040826]
[1642608944516,0.00318606,3098.3,3098.0,1.64899474]
[1642608944766,0.00318606,3098.3,3098.0,2.45599684]
[1642608944963,0.00318606,3098.3,3098.1,0.387]
[1642608945364,0.00318606,3098.3,3098.2,2.40170527]
[1642608945564,0.00318606,3098.3,3098.2,0.00170527]
[1642608945963,0.00318606,3098.3,3098.2,2.65170527]
[1642608946868,0.00318606,3098.3,3098.2,6.33870527]
[1642608947067,0.00371585,3098.6,3098.3,5.95]
[1642608947271,0.00371585,3098.6,3098.4,0.387]
[1642608947465,0.00371585,3098.6,3098.5,5.779]
[1642608947664,0.00371585,3098.6,3098.5,6.037]
[1642608948538,0.00371585,3098.6,3098.5,7.76717483]
[1642608949639,0.00371585,3098.6,3098.5,2.11717483]
[1642608951045,1.61377,3099.6,3099.4,0.5835793]
[1642608952042,0.59075105,3099.3,3099.0,2.8074107]
[1642608952463,0.0022737,3099.2,3099.0,2.8074107]
[1642608952866,0.59075105,3099.3,3099.0,2.8074107]
[1642608953274,1.74564441,3099.2,3099.0,2.4204107]
[1642608953475,3.20458709,3099.2,3099.0,2.4204107]
[1642608954075,3.20458709,3099.2,3098.8,0.8068361]
[1642608954076,0.04544405,3099.1,3098.8,0.8068361]
[1642608954271,3.20458709,3099.2,3098.8,0.8068361]
[1642608954473,1.45894268,3099.2,3098.9,0.00113684]
[1642608955369,0.59075105,3099.3,3098.9,0.00113684]
[1642608955771,1.54355105,3099.3,3098.9,0.00113684]
[1642608956020,0.59075105,3099.3,3098.9,0.00113684]
[1642608956215,2.74688509,3099.2,3098.9,0.00113684]
[1642608956414,3.55379509,3099.2,3098.9,0.00113684]